[Event "Titled Tuesday Blitz November 01 Early 2022"]
[White "Fernandez De La Vara, Arnaldo"]
[Black "Odegov, Artem"]
[WhiteFideId "3518388"]
[BlackFideId "34183644"]
[WhiteElo "2387"]
[BlackElo "2298"]
[Result "1-0"]
[Round "09"]
[TimeControl "180+1"]
[Date "2022.11.02"]
[WhiteClock "0:00:22"]
[BlackClock "0:00:10"]

1. Nf3 {[%clk 0:02:59]}  d5 {[%clk 0:02:59]} 2. c4 {[%clk 0:02:58]}  e6 {[%clk 0:02:59]} 3. g3 {[%clk 0:02:58]}  Nf6 {[%clk 0:02:59]} 4. Bg2 {[%clk 0:02:58]}  dxc4 {[%clk 0:03:00]} 5. Qa4+ {[%clk 0:02:58]}  Nbd7 {[%clk 0:02:58]} 6. O-O {[%clk 0:02:57]}  Be7 {[%clk 0:02:58]} 7. Nc3 {[%clk 0:02:55]}  O-O {[%clk 0:02:59]} 8. Qxc4 {[%clk 0:02:55]}  a6 {[%clk 0:02:58]} 9. d4 {[%clk 0:02:54]}  b5 {[%clk 0:02:57]} 10. Qd3 {[%clk 0:02:54]}  Bb7 {[%clk 0:02:56]} 11. Rd1 {[%clk 0:02:52]}  c5 {[%clk 0:02:55]} 12. Bg5 {[%clk 0:02:48]}  cxd4 {[%clk 0:02:53]} 13. Nxd4 {[%clk 0:02:35]}  Bxg2 {[%clk 0:02:51]} 14. Kxg2 {[%clk 0:02:36]}  h6 {[%clk 0:02:46]} 15. Nc6 {[%clk 0:02:24]}  Qe8 {[%clk 0:02:45]} 16. Bf4 {[%clk 0:02:08]}  Nc5 {[%clk 0:02:28]} 17. Qf3 {[%clk 0:02:00]}  Nb7 {[%clk 0:01:41]} 18. Rd2 {[%clk 0:01:42]}  Bc5 {[%clk 0:01:25]} 19. Rad1 {[%clk 0:01:33]}  Rc8 {[%clk 0:01:23]} 20. Ne5 {[%clk 0:01:25]}  Na5 {[%clk 0:01:20]} 21. Bxh6 {[%clk 0:01:13]}  b4 {[%clk 0:01:16]} 22. Ne4 {[%clk 0:00:41]}  Be7 {[%clk 0:00:27]} 23. Nxf6+ {[%clk 0:00:27]}  Bxf6 {[%clk 0:00:28]} 24. Nd7 {[%clk 0:00:23]}  Qe7 {[%clk 0:00:06]} 25. Nxf6+ {[%clk 0:00:22]}  Qxf6 {[%clk 0:00:04]} 26. Qxf6 {[%clk 0:00:21]}  gxf6 {[%clk 0:00:05]} 27. Bxf8 {[%clk 0:00:22]}  Rxf8 {[%clk 0:00:06]} 28. Rd8 {[%clk 0:00:22]}  Nc4 {[%clk 0:00:06]} 29. Rxf8+ {[%clk 0:00:22]}  Kxf8 {[%clk 0:00:07]} 30. b3 {[%clk 0:00:21]}  Ne5 {[%clk 0:00:07]} 31. Rd8+ {[%clk 0:00:21]}  Ke7 {[%clk 0:00:07]} 32. Ra8 {[%clk 0:00:20]}  Nc6 {[%clk 0:00:07]} 33. Rxa6 {[%clk 0:00:20]}  Nd4 {[%clk 0:00:08]} 34. e3 {[%clk 0:00:19]}  Ne2 {[%clk 0:00:08]} 35. Ra4 {[%clk 0:00:19]}  Nc3 {[%clk 0:00:08]} 36. Rxb4 {[%clk 0:00:19]}  Nxa2 {[%clk 0:00:09]} 37. Rc4 {[%clk 0:00:19]}  Kd6 {[%clk 0:00:09]} 38. e4 {[%clk 0:00:20]}  f5 {[%clk 0:00:09]} 39. f3 {[%clk 0:00:19]}  fxe4 {[%clk 0:00:10]} 40. fxe4 {[%clk 0:00:20]}  f5 {[%clk 0:00:10]} 41. Kf3 {[%clk 0:00:20]}  fxe4+ {[%clk 0:00:10]} 42. Kxe4 {[%clk 0:00:21]}  e5 {[%clk 0:00:10]} 43. h4 {[%clk 0:00:20]}  Kd7 {[%clk 0:00:09]} 44. h5 {[%clk 0:00:21]}  Ke7 {[%clk 0:00:09]} 45. Kxe5 {[%clk 0:00:20]}  Kf7 {[%clk 0:00:10]} 46. Kf5 {[%clk 0:00:20]}  Kg7 {[%clk 0:00:10]} 47. Kg5 {[%clk 0:00:21]}  Kh7 {[%clk 0:00:09]} 48. h6 {[%clk 0:00:21]}  Kh8 {[%clk 0:00:10]} 49. Kg6 {[%clk 0:00:21]}  Nb4 {[%clk 0:00:10]} 50. Rc8# {[%clk 0:00:22]} 1-0


[Site "https://www.chess.com"]

[Event "Titled Tuesday Blitz November 01 Early 2022"]
[White "Fernandez Siles, Luis"]
[Black "Jaskolka, Tomasz"]
[WhiteFideId "2209420"]
[BlackFideId "1170791"]
[WhiteElo "2186"]
[BlackElo "2126"]
[Result "0-1"]
[Round "09"]
[TimeControl "180+1"]
[Date "2022.11.02"]
[WhiteClock "0:00:11"]
[BlackClock "0:01:17"]

1. e4 {[%clk 0:03:00]}  c5 {[%clk 0:02:56]} 2. Nf3 {[%clk 0:03:00]}  e6 {[%clk 0:02:55]} 3. c3 {[%clk 0:02:59]}  Nf6 {[%clk 0:02:55]} 4. e5 {[%clk 0:02:59]}  Nd5 {[%clk 0:02:55]} 5. Bc4 {[%clk 0:03:00]}  Nc6 {[%clk 0:02:47]} 6. O-O {[%clk 0:02:57]}  d6 {[%clk 0:02:45]} 7. d4 {[%clk 0:02:56]}  cxd4 {[%clk 0:02:45]} 8. cxd4 {[%clk 0:02:56]}  Be7 {[%clk 0:02:43]} 9. Qe2 {[%clk 0:02:54]}  O-O {[%clk 0:02:39]} 10. Bd2 {[%clk 0:02:50]}  b6 {[%clk 0:02:39]} 11. Nc3 {[%clk 0:02:48]}  Nxc3 {[%clk 0:02:38]} 12. Bxc3 {[%clk 0:02:47]}  Bb7 {[%clk 0:02:39]} 13. Rad1 {[%clk 0:02:35]}  Rc8 {[%clk 0:02:37]} 14. Bd3 {[%clk 0:02:34]}  dxe5 {[%clk 0:02:36]} 15. dxe5 {[%clk 0:02:30]}  Qc7 {[%clk 0:02:35]} 16. Qe4 {[%clk 0:02:23]}  g6 {[%clk 0:02:34]} 17. Qg4 {[%clk 0:02:21]}  Rfd8 {[%clk 0:02:29]} 18. Rfe1 {[%clk 0:01:59]}  Bf8 {[%clk 0:02:29]} 19. h4 {[%clk 0:01:58]}  Bg7 {[%clk 0:02:29]} 20. h5 {[%clk 0:01:55]}  Ne7 {[%clk 0:02:25]} 21. Ng5 {[%clk 0:01:36]}  Nf5 {[%clk 0:02:05]} 22. Qh3 {[%clk 0:01:09]}  Qe7 {[%clk 0:01:57]} 23. Nxh7 {[%clk 0:00:57]}  Kxh7 {[%clk 0:01:56]} 24. hxg6+ {[%clk 0:00:57]}  Kxg6 {[%clk 0:01:45]} 25. g4 {[%clk 0:00:39]}  Qg5 {[%clk 0:01:37]} 26. Bd2 {[%clk 0:00:29]}  Rh8 {[%clk 0:01:30]} 27. Bxg5 {[%clk 0:00:16]}  Rxh3 {[%clk 0:01:30]} 28. f4 {[%clk 0:00:16]}  Bf8 {[%clk 0:01:16]} 29. gxf5+ {[%clk 0:00:14]}  exf5 {[%clk 0:01:17]} 30. Bf1 {[%clk 0:00:11]}  Bc5+ {[%clk 0:01:17]} 0-1


[Site "https://www.chess.com"]

[Event "Titled Tuesday Blitz November 01 Early 2022"]
[White "Flis, Pawel"]
[Black "Orzech, Dominik"]
[WhiteFideId "1112864"]
[BlackFideId "1115065"]
[WhiteElo "1836"]
[BlackElo "2272"]
[Result "1-0"]
[Round "09"]
[TimeControl "180+1"]
[Date "2022.11.02"]
[WhiteClock "0:01:04"]
[BlackClock "0:00:01"]

1. e4 {[%clk 0:03:00]}  e6 {[%clk 0:00:14]} 2. d4 {[%clk 0:02:58]}  d5 {[%clk 0:00:15]} 3. Bd3 {[%clk 0:02:58]}  Nf6 {[%clk 0:00:13]} 4. e5 {[%clk 0:02:57]}  Nfd7 {[%clk 0:00:13]} 5. Nf3 {[%clk 0:02:57]}  c5 {[%clk 0:00:14]} 6. c3 {[%clk 0:02:57]}  Nc6 {[%clk 0:00:15]} 7. O-O {[%clk 0:02:54]}  Be7 {[%clk 0:00:15]} 8. Be3 {[%clk 0:02:49]}  Rb8 {[%clk 0:00:16]} 9. a4 {[%clk 0:02:48]}  b5 {[%clk 0:00:17]} 10. axb5 {[%clk 0:02:47]}  Na5 {[%clk 0:00:16]} 11. Na3 {[%clk 0:02:36]}  c4 {[%clk 0:00:11]} 12. Bc2 {[%clk 0:02:33]}  O-O {[%clk 0:00:09]} 13. g3 {[%clk 0:02:30]}  Bxa3 {[%clk 0:00:07]} 14. bxa3 {[%clk 0:02:10]}  h6 {[%clk 0:00:06]} 15. a4 {[%clk 0:02:09]}  a6 {[%clk 0:00:06]} 16. Rb1 {[%clk 0:02:06]}  axb5 {[%clk 0:00:06]} 17. Rxb5 {[%clk 0:02:03]}  Rxb5 {[%clk 0:00:04]} 18. axb5 {[%clk 0:02:04]}  Qb6 {[%clk 0:00:04]} 19. Ba4 {[%clk 0:02:02]}  Bb7 {[%clk 0:00:03]} 20. Qa1 {[%clk 0:01:55]}  Ra8 {[%clk 0:00:04]} 21. Qb2 {[%clk 0:01:47]}  Nb3 {[%clk 0:00:04]} 22. Bxb3 {[%clk 0:01:43]}  Qxb5 {[%clk 0:00:04]} 23. Rb1 {[%clk 0:01:42]}  cxb3 {[%clk 0:00:04]} 24. Qxb3 {[%clk 0:01:42]}  Qxb3 {[%clk 0:00:04]} 25. Rxb3 {[%clk 0:01:42]}  Ba6 {[%clk 0:00:05]} 26. Ra3 {[%clk 0:01:37]}  Nb6 {[%clk 0:00:03]} 27. Nd2 {[%clk 0:01:35]}  Bd3 {[%clk 0:00:03]} 28. Rxa8+ {[%clk 0:01:31]}  Nxa8 {[%clk 0:00:04]} 29. Nb3 {[%clk 0:01:28]}  Nc7 {[%clk 0:00:04]} 30. Nc5 {[%clk 0:01:26]}  Be2 {[%clk 0:00:04]} 31. f4 {[%clk 0:01:22]}  Nb5 {[%clk 0:00:05]} 32. Bd2 {[%clk 0:01:20]}  Na3 {[%clk 0:00:05]} 33. Kf2 {[%clk 0:01:19]}  Bb5 {[%clk 0:00:04]} 34. g4 {[%clk 0:01:15]}  Nc4 {[%clk 0:00:04]} 35. Bc1 {[%clk 0:01:15]}  Kh7 {[%clk 0:00:03]} 36. f5 {[%clk 0:01:14]}  h5 {[%clk 0:00:03]} 37. fxe6 {[%clk 0:01:10]}  fxe6 {[%clk 0:00:04]} 38. Nxe6 {[%clk 0:01:06]}  hxg4 {[%clk 0:00:03]} 39. Kg3 {[%clk 0:01:05]}  Kg6 {[%clk 0:00:02]} 40. Nf4+ {[%clk 0:01:04]}  Kf5 {[%clk 0:00:01]} 41. Nxd5 {[%clk 0:01:04]} 1-0


[Site "https://www.chess.com"]

[Event "Titled Tuesday Blitz November 01 Early 2022"]
[White "Garayev, Kanan"]
[Black "Chernomordik, Pavel"]
[WhiteFideId "13406671"]
[BlackFideId "2804530"]
[WhiteElo "2244"]
[BlackElo "2217"]
[Result "1-0"]
[Round "09"]
[TimeControl "180+1"]
[Date "2022.11.02"]
[WhiteClock "0:01:30"]
[BlackClock "0:00:49"]

1. d4 {[%clk 0:02:57]}  g6 {[%clk 0:03:00]} 2. e4 {[%clk 0:02:56]}  Bg7 {[%clk 0:03:00]} 3. Nc3 {[%clk 0:02:56]}  d6 {[%clk 0:02:59]} 4. g3 {[%clk 0:02:57]}  h5 {[%clk 0:02:58]} 5. h3 {[%clk 0:02:56]}  Nc6 {[%clk 0:02:57]} 6. Nge2 {[%clk 0:02:56]}  e5 {[%clk 0:02:54]} 7. Be3 {[%clk 0:02:56]}  h4 {[%clk 0:02:53]} 8. g4 {[%clk 0:02:56]}  f5 {[%clk 0:02:53]} 9. gxf5 {[%clk 0:02:53]}  gxf5 {[%clk 0:02:53]} 10. exf5 {[%clk 0:02:52]}  Bxf5 {[%clk 0:02:52]} 11. Qd2 {[%clk 0:02:52]}  Qd7 {[%clk 0:02:50]} 12. dxe5 {[%clk 0:02:50]}  Nxe5 {[%clk 0:02:49]} 13. Nd4 {[%clk 0:02:47]}  c5 {[%clk 0:02:47]} 14. Bb5 {[%clk 0:02:47]}  cxd4 {[%clk 0:02:37]} 15. Bxd7+ {[%clk 0:02:46]}  Bxd7 {[%clk 0:02:36]} 16. O-O-O {[%clk 0:02:44]}  dxc3 {[%clk 0:02:23]} 17. Qxd6 {[%clk 0:02:35]}  cxb2+ {[%clk 0:02:13]} 18. Kb1 {[%clk 0:02:32]}  O-O-O {[%clk 0:02:00]} 19. Bxa7 {[%clk 0:02:26]}  Nc6 {[%clk 0:01:58]} 20. Bb6 {[%clk 0:02:20]}  Be5 {[%clk 0:01:57]} 21. Qa3 {[%clk 0:02:20]}  Nf6 {[%clk 0:01:53]} 22. Bxd8 {[%clk 0:02:18]}  Rxd8 {[%clk 0:01:53]} 23. Rhe1 {[%clk 0:02:18]}  Re8 {[%clk 0:01:39]} 24. f4 {[%clk 0:02:06]}  Bd4 {[%clk 0:01:30]} 25. Rxe8+ {[%clk 0:01:57]}  Bxe8 {[%clk 0:01:25]} 26. Rxd4 {[%clk 0:01:52]}  Nxd4 {[%clk 0:01:24]} 27. Qc3+ {[%clk 0:01:52]}  Bc6 {[%clk 0:01:14]} 28. Qxd4 {[%clk 0:01:52]}  Ne4 {[%clk 0:01:15]} 29. Kxb2 {[%clk 0:01:51]}  Kc7 {[%clk 0:01:11]} 30. f5 {[%clk 0:01:50]}  Nd6 {[%clk 0:01:07]} 31. f6 {[%clk 0:01:50]}  b5 {[%clk 0:01:06]} 32. Qxh4 {[%clk 0:01:49]}  Bd5 {[%clk 0:01:03]} 33. Qf4 {[%clk 0:01:43]}  Kc6 {[%clk 0:01:01]} 34. h4 {[%clk 0:01:40]}  Bf7 {[%clk 0:01:00]} 35. Qf3+ {[%clk 0:01:37]}  Bd5 {[%clk 0:00:59]} 36. Qf4 {[%clk 0:01:34]}  Kd7 {[%clk 0:00:56]} 37. h5 {[%clk 0:01:32]}  Ke6 {[%clk 0:00:50]} 38. h6 {[%clk 0:01:30]}  Nf7 {[%clk 0:00:49]} 39. h7 {[%clk 0:01:30]} 1-0


[Site "https://www.chess.com"]

[Event "Titled Tuesday Blitz November 01 Early 2022"]
[White "Harriott, Tyrell"]
[Black "Karas, Marek"]
[WhiteFideId "2086484"]
[BlackFideId "14928558"]
[WhiteElo "2107"]
[BlackElo "2220"]
[Result "1-0"]
[Round "09"]
[TimeControl "180+1"]
[Date "2022.11.02"]
[WhiteClock "0:02:52"]
[BlackClock "0:02:36"]

1. d4 {[%clk 0:03:00]}  Nf6 {[%clk 0:02:59]} 2. e3 {[%clk 0:03:01]}  g6 {[%clk 0:02:54]} 3. Bd3 {[%clk 0:03:02]}  Bg7 {[%clk 0:02:54]} 4. f4 {[%clk 0:03:02]}  c5 {[%clk 0:02:53]} 5. Nf3 {[%clk 0:03:02]}  b6 {[%clk 0:02:54]} 6. O-O {[%clk 0:03:01]}  Bb7 {[%clk 0:02:54]} 7. Nbd2 {[%clk 0:03:01]}  O-O {[%clk 0:02:53]} 8. f5 {[%clk 0:03:00]}  cxd4 {[%clk 0:02:49]} 9. exd4 {[%clk 0:02:57]}  d6 {[%clk 0:02:43]} 10. Qe1 {[%clk 0:02:56]}  Nc6 {[%clk 0:02:41]} 11. Qh4 {[%clk 0:02:54]}  Nb4 {[%clk 0:02:39]} 12. fxg6 {[%clk 0:02:54]}  hxg6 {[%clk 0:02:39]} 13. Ng5 {[%clk 0:02:54]}  Nxd3 {[%clk 0:02:36]} 14. Rxf6 {[%clk 0:02:52]} 1-0


[Site "https://www.chess.com"]

[Event "Titled Tuesday Blitz November 01 Early 2022"]
[White "Harsh Suresh"]
[Black "Sargsyan, Anna M."]
[WhiteFideId "45018464"]
[BlackFideId "13308130"]
[WhiteElo "2180"]
[BlackElo "2284"]
[Result "1-0"]
[Round "09"]
[TimeControl "180+1"]
[Date "2022.11.01"]
[WhiteClock "0:00:14"]
[BlackClock "0:00:03"]

1. d4 {[%clk 0:03:00]}  d5 {[%clk 0:02:22]} 2. Nf3 {[%clk 0:02:57]}  Nf6 {[%clk 0:02:21]} 3. c3 {[%clk 0:02:53]}  c5 {[%clk 0:02:18]} 4. dxc5 {[%clk 0:02:53]}  e6 {[%clk 0:02:18]} 5. Be3 {[%clk 0:02:52]}  Ne4 {[%clk 0:02:16]} 6. c4 {[%clk 0:02:48]}  Qa5+ {[%clk 0:02:01]} 7. Nbd2 {[%clk 0:02:46]}  dxc4 {[%clk 0:02:01]} 8. Qc2 {[%clk 0:02:39]}  Nxc5 {[%clk 0:01:56]} 9. Qxc4 {[%clk 0:02:38]}  Nc6 {[%clk 0:01:57]} 10. a3 {[%clk 0:02:32]}  Bd7 {[%clk 0:01:47]} 11. g3 {[%clk 0:02:15]}  Nb4 {[%clk 0:01:21]} 12. Bg2 {[%clk 0:01:45]}  Bb5 {[%clk 0:01:10]} 13. Qc3 {[%clk 0:01:33]}  Nbd3+ {[%clk 0:00:44]} 14. exd3 {[%clk 0:01:32]}  Nxd3+ {[%clk 0:00:45]} 15. Kd1 {[%clk 0:01:30]}  Bb4 {[%clk 0:00:36]} 16. Qxg7 {[%clk 0:00:52]}  O-O-O {[%clk 0:00:24]} 17. Kc2 {[%clk 0:00:52]}  Ba4+ {[%clk 0:00:14]} 18. b3 {[%clk 0:00:45]}  Rhg8 {[%clk 0:00:14]} 19. Qxf7 {[%clk 0:00:37]}  Bxd2 {[%clk 0:00:11]} 20. Nxd2 {[%clk 0:00:32]}  Bd7 {[%clk 0:00:06]} 21. Nc4 {[%clk 0:00:29]}  Qa6 {[%clk 0:00:02]} 22. Rhd1 {[%clk 0:00:23]}  Rgf8 {[%clk 0:00:03]} 23. Qxh7 {[%clk 0:00:22]}  Nxf2 {[%clk 0:00:03]} 24. Kb2 {[%clk 0:00:17]}  Nxd1+ {[%clk 0:00:03]} 25. Rxd1 {[%clk 0:00:16]}  Kb8 {[%clk 0:00:04]} 26. Bf4+ {[%clk 0:00:15]}  Ka8 {[%clk 0:00:04]} 27. Qd3 {[%clk 0:00:12]}  Qb5 {[%clk 0:00:03]} 28. Nd6 {[%clk 0:00:12]}  Qxd3 {[%clk 0:00:04]} 29. Rxd3 {[%clk 0:00:13]}  Bc6 {[%clk 0:00:03]} 30. Bxc6 {[%clk 0:00:13]}  bxc6 {[%clk 0:00:04]} 31. Kc3 {[%clk 0:00:14]}  Kb8 {[%clk 0:00:04]} 32. h4 {[%clk 0:00:13]}  Ka8 {[%clk 0:00:05]} 33. Nc4 {[%clk 0:00:13]}  Rc8 {[%clk 0:00:04]} 34. h5 {[%clk 0:00:13]}  Rh8 {[%clk 0:00:05]} 35. h6 {[%clk 0:00:13]}  Rcg8 {[%clk 0:00:05]} 36. Rd7 {[%clk 0:00:13]}  Rg6 {[%clk 0:00:03]} 37. Ne5 {[%clk 0:00:14]}  Rf6 {[%clk 0:00:03]} 38. Nxc6 {[%clk 0:00:14]}  a6 {[%clk 0:00:03]} 39. Ra7# {[%clk 0:00:14]} 1-0


[Site "https://www.chess.com"]

[Event "Titled Tuesday Blitz November 01 Early 2022"]
[White "Ibarra Jerez, Jose Carlos"]
[Black "Schekachikhin, Maksim"]
[WhiteFideId "2226332"]
[BlackFideId "24177830"]
[WhiteElo "2627"]
[BlackElo "2272"]
[Result "1-0"]
[Round "09"]
[TimeControl "180+1"]
[Date "2022.11.01"]
[WhiteClock "0:01:38"]
[BlackClock "0:02:26"]

1. e4 {[%clk 0:03:00]}  e6 {[%clk 0:02:59]} 2. d4 {[%clk 0:03:00]}  d5 {[%clk 0:02:58]} 3. Nd2 {[%clk 0:03:00]}  c5 {[%clk 0:02:58]} 4. exd5 {[%clk 0:02:58]}  Qxd5 {[%clk 0:02:56]} 5. Ngf3 {[%clk 0:02:58]}  cxd4 {[%clk 0:02:53]} 6. Bc4 {[%clk 0:02:59]}  Qd7 {[%clk 0:02:50]} 7. O-O {[%clk 0:02:58]}  Nf6 {[%clk 0:02:49]} 8. Nb3 {[%clk 0:02:57]}  Nc6 {[%clk 0:02:45]} 9. Qe2 {[%clk 0:02:57]}  a6 {[%clk 0:02:41]} 10. a4 {[%clk 0:02:57]}  Qc7 {[%clk 0:02:40]} 11. Rd1 {[%clk 0:02:55]}  Bd6 {[%clk 0:02:38]} 12. Nbxd4 {[%clk 0:02:55]}  Nxd4 {[%clk 0:02:38]} 13. Rxd4 {[%clk 0:02:56]}  Bd7 {[%clk 0:02:35]} 14. Bg5 {[%clk 0:02:33]}  O-O-O {[%clk 0:02:32]} 15. Bxa6 {[%clk 0:02:17]}  bxa6 {[%clk 0:02:31]} 16. Qxa6+ {[%clk 0:02:09]}  Qb7 {[%clk 0:02:28]} 17. Qxb7+ {[%clk 0:01:45]}  Kxb7 {[%clk 0:02:27]} 18. Rxd6 {[%clk 0:01:45]}  Bc6 {[%clk 0:02:28]} 19. Rxc6 {[%clk 0:01:38]}  Kxc6 {[%clk 0:02:26]} 20. Ne5+ {[%clk 0:01:38]} 1-0


[Site "https://www.chess.com"]

[Event "Titled Tuesday Blitz November 01 Early 2022"]
[White "Johnson, Ben"]
[Black "Osmonbekov, Talaibek"]
[WhiteFideId "2010917"]
[BlackFideId "2017253"]
[WhiteElo "2125"]
[BlackElo "2135"]
[Result "0-1"]
[Round "09"]
[TimeControl "180+1"]
[Date "2022.11.02"]
[WhiteClock "0:00:10"]
[BlackClock "0:01:24"]

1. Nf3 {[%clk 0:03:00]}  f5 {[%clk 0:02:57]} 2. d4 {[%clk 0:02:59]}  Nf6 {[%clk 0:02:57]} 3. g3 {[%clk 0:02:57]}  e6 {[%clk 0:02:57]} 4. Bg2 {[%clk 0:02:57]}  Be7 {[%clk 0:02:58]} 5. O-O {[%clk 0:02:57]}  O-O {[%clk 0:02:58]} 6. c4 {[%clk 0:02:53]}  d6 {[%clk 0:02:59]} 7. Nc3 {[%clk 0:02:50]}  a5 {[%clk 0:02:59]} 8. Qc2 {[%clk 0:02:41]}  Nc6 {[%clk 0:02:59]} 9. e4 {[%clk 0:02:33]}  e5 {[%clk 0:02:58]} 10. dxe5 {[%clk 0:02:22]}  dxe5 {[%clk 0:02:59]} 11. Re1 {[%clk 0:01:21]}  Bc5 {[%clk 0:02:34]} 12. Be3 {[%clk 0:01:08]}  Nd4 {[%clk 0:02:04]} 13. Nxd4 {[%clk 0:00:55]}  exd4 {[%clk 0:02:03]} 14. Rad1 {[%clk 0:00:50]}  dxe3 {[%clk 0:01:58]} 15. Rxd8 {[%clk 0:00:32]}  exf2+ {[%clk 0:01:58]} 16. Kf1 {[%clk 0:00:29]}  fxe1=Q+ {[%clk 0:01:56]} 17. Kxe1 {[%clk 0:00:30]}  Rxd8 {[%clk 0:01:54]} 18. e5 {[%clk 0:00:22]}  Re8 {[%clk 0:01:49]} 19. Nd5 {[%clk 0:00:16]}  Rxe5+ {[%clk 0:01:46]} 20. Kd1 {[%clk 0:00:17]}  Nxd5 {[%clk 0:01:39]} 21. Bxd5+ {[%clk 0:00:16]}  Be6 {[%clk 0:01:36]} 22. Qc3 {[%clk 0:00:14]}  Re3 {[%clk 0:01:33]} 23. Qd2 {[%clk 0:00:10]}  c6 {[%clk 0:01:24]} 0-1


[Site "https://www.chess.com"]

[Event "Titled Tuesday Blitz November 01 Early 2022"]
[White "Kanyamarala, Trisha"]
[Black "Tarasova, Viktoriya"]
[WhiteFideId "45004722"]
[BlackFideId "4175840"]
[WhiteElo "2099"]
[BlackElo "2182"]
[Result "1-0"]
[Round "09"]
[TimeControl "180+1"]
[Date "2022.11.02"]
[WhiteClock "0:00:55"]
[BlackClock "0:00:02"]

1. c4 {[%clk 0:02:58]}  Nf6 {[%clk 0:02:58]} 2. Nc3 {[%clk 0:02:58]}  e5 {[%clk 0:02:58]} 3. g3 {[%clk 0:02:56]}  c6 {[%clk 0:02:57]} 4. Nf3 {[%clk 0:02:55]}  e4 {[%clk 0:02:56]} 5. Ng5 {[%clk 0:02:55]}  d5 {[%clk 0:02:53]} 6. cxd5 {[%clk 0:02:54]}  cxd5 {[%clk 0:02:54]} 7. d4 {[%clk 0:02:47]}  Be7 {[%clk 0:02:46]} 8. Bg2 {[%clk 0:02:46]}  O-O {[%clk 0:02:45]} 9. O-O {[%clk 0:02:45]}  h6 {[%clk 0:02:45]} 10. Nh3 {[%clk 0:02:45]}  Nc6 {[%clk 0:02:46]} 11. e3 {[%clk 0:02:36]}  Bg4 {[%clk 0:02:38]} 12. Qb3 {[%clk 0:02:34]}  Na5 {[%clk 0:02:26]} 13. Qa4 {[%clk 0:02:30]}  g5 {[%clk 0:02:02]} 14. Kh1 {[%clk 0:02:16]}  Rc8 {[%clk 0:01:55]} 15. Ng1 {[%clk 0:02:14]}  Rc4 {[%clk 0:01:54]} 16. Qc2 {[%clk 0:02:11]}  b5 {[%clk 0:01:44]} 17. a3 {[%clk 0:02:10]}  Bf5 {[%clk 0:01:23]} 18. Qe2 {[%clk 0:02:04]}  a6 {[%clk 0:01:08]} 19. Bd2 {[%clk 0:01:57]}  Nb3 {[%clk 0:01:06]} 20. Rad1 {[%clk 0:01:56]}  Nxd2 {[%clk 0:01:05]} 21. Rxd2 {[%clk 0:01:56]}  g4 {[%clk 0:00:44]} 22. h3 {[%clk 0:01:42]}  h5 {[%clk 0:00:44]} 23. Ra1 {[%clk 0:01:39]}  Qd7 {[%clk 0:00:38]} 24. h4 {[%clk 0:01:38]}  Rfc8 {[%clk 0:00:37]} 25. Qd1 {[%clk 0:01:36]}  a5 {[%clk 0:00:36]} 26. Bf1 {[%clk 0:01:34]}  b4 {[%clk 0:00:28]} 27. axb4 {[%clk 0:01:27]}  axb4 {[%clk 0:00:28]} 28. Na4 {[%clk 0:01:22]}  R4c6 {[%clk 0:00:11]} 29. Bb5 {[%clk 0:01:21]}  Qc7 {[%clk 0:00:11]} 30. Bxc6 {[%clk 0:01:20]}  Qxc6 {[%clk 0:00:12]} 31. Ne2 {[%clk 0:01:20]}  Bd6 {[%clk 0:00:09]} 32. Rc1 {[%clk 0:01:19]}  Qb7 {[%clk 0:00:09]} 33. Rxc8+ {[%clk 0:01:17]}  Bxc8 {[%clk 0:00:09]} 34. Nc5 {[%clk 0:01:15]}  Qb5 {[%clk 0:00:07]} 35. Rc2 {[%clk 0:01:14]}  Ba6 {[%clk 0:00:05]} 36. Nxa6 {[%clk 0:01:08]}  Qxa6 {[%clk 0:00:04]} 37. Nf4 {[%clk 0:01:06]}  Bxf4 {[%clk 0:00:03]} 38. gxf4 {[%clk 0:01:06]}  Qb5 {[%clk 0:00:04]} 39. Qe2 {[%clk 0:01:05]}  Qb6 {[%clk 0:00:03]} 40. Rc1 {[%clk 0:01:04]}  Kg7 {[%clk 0:00:04]} 41. Qc2 {[%clk 0:01:03]}  Qd8 {[%clk 0:00:03]} 42. Qc7 {[%clk 0:01:01]}  Qa8 {[%clk 0:00:03]} 43. Qe5 {[%clk 0:01:00]}  Qa6 {[%clk 0:00:02]} 44. Qg5+ {[%clk 0:00:57]}  Kh7 {[%clk 0:00:02]} 45. Kg2 {[%clk 0:00:55]} 1-0


[Site "https://www.chess.com"]

[Event "Titled Tuesday Blitz November 01 Early 2022"]
[White "Malyi, Viacheslav"]
[Black "Chernobay, Artem"]
[WhiteFideId "14123983"]
[BlackFideId "4167406"]
[WhiteElo "2291"]
[BlackElo "2473"]
[Result "0-1"]
[Round "09"]
[TimeControl "180+1"]
[Date "2022.11.02"]
[WhiteClock "0:00:58"]
[BlackClock "0:00:33"]

1. e4 {[%clk 0:03:00]}  e6 {[%clk 0:02:58]} 2. d4 {[%clk 0:02:58]}  d5 {[%clk 0:02:59]} 3. Nc3 {[%clk 0:02:59]}  Nf6 {[%clk 0:02:58]} 4. Bg5 {[%clk 0:02:57]}  Be7 {[%clk 0:02:58]} 5. e5 {[%clk 0:02:56]}  Nfd7 {[%clk 0:02:58]} 6. Bxe7 {[%clk 0:02:57]}  Qxe7 {[%clk 0:02:59]} 7. f4 {[%clk 0:02:58]}  a6 {[%clk 0:02:59]} 8. Nf3 {[%clk 0:02:58]}  c5 {[%clk 0:03:00]} 9. Qd2 {[%clk 0:02:59]}  Nc6 {[%clk 0:03:00]} 10. O-O-O {[%clk 0:02:59]}  b5 {[%clk 0:02:43]} 11. dxc5 {[%clk 0:02:57]}  Nxc5 {[%clk 0:02:36]} 12. Nd4 {[%clk 0:02:57]}  Bd7 {[%clk 0:02:31]} 13. Nxc6 {[%clk 0:02:56]}  Bxc6 {[%clk 0:02:32]} 14. Ne2 {[%clk 0:02:56]}  b4 {[%clk 0:02:27]} 15. Nd4 {[%clk 0:02:55]}  Bd7 {[%clk 0:02:24]} 16. Bd3 {[%clk 0:02:53]}  O-O {[%clk 0:02:21]} 17. Kb1 {[%clk 0:02:51]}  a5 {[%clk 0:02:20]} 18. h4 {[%clk 0:02:52]}  a4 {[%clk 0:02:06]} 19. h5 {[%clk 0:02:49]}  b3 {[%clk 0:02:00]} 20. cxb3 {[%clk 0:02:48]}  axb3 {[%clk 0:02:00]} 21. a3 {[%clk 0:02:49]}  Ra4 {[%clk 0:01:57]} 22. Bb5 {[%clk 0:02:34]}  Rxd4 {[%clk 0:01:55]} 23. Qxd4 {[%clk 0:02:34]}  Bxb5 {[%clk 0:01:56]} 24. h6 {[%clk 0:02:26]}  g6 {[%clk 0:01:54]} 25. Rc1 {[%clk 0:02:24]}  Ne4 {[%clk 0:01:49]} 26. g4 {[%clk 0:02:17]}  Be2 {[%clk 0:01:34]} 27. g5 {[%clk 0:02:08]}  Bg4 {[%clk 0:01:30]} 28. Rc6 {[%clk 0:01:42]}  Ng3 {[%clk 0:01:18]} 29. Rhc1 {[%clk 0:01:32]}  Ne2 {[%clk 0:01:15]} 30. Qc5 {[%clk 0:01:32]}  Qxc5 {[%clk 0:00:52]} 31. R1xc5 {[%clk 0:01:33]}  Nxf4 {[%clk 0:00:52]} 32. Rc8 {[%clk 0:01:23]}  d4 {[%clk 0:00:39]} 33. Rxf8+ {[%clk 0:01:13]}  Kxf8 {[%clk 0:00:38]} 34. Rc8+ {[%clk 0:01:13]}  Ke7 {[%clk 0:00:38]} 35. Kc1 {[%clk 0:01:14]}  Nd3+ {[%clk 0:00:35]} 36. Kd2 {[%clk 0:01:13]}  Nxb2 {[%clk 0:00:34]} 37. Rb8 {[%clk 0:00:58]}  Nc4+ {[%clk 0:00:34]} 38. Kd3 {[%clk 0:00:59]}  Nxe5+ {[%clk 0:00:34]} 39. Kxd4 {[%clk 0:00:58]}  Nc6+ {[%clk 0:00:33]} 0-1


[Site "https://www.chess.com"]